{"text_format":"1","workbook":"xlsx","n_sheets":8,"sheets":["Setup","Today Card","Daily Scores","Weekly Reflection","S3","Projects","Goals","Guide to Extra Credit pts."],"not_rendered":{"charts":0,"images":0,"macros":1,"external_links":0,"defined_names":2,"comments":4,"pivot_tables":0},"unopened":[],"bounds":{"document_bytes":16777216,"sheet_cells":100000,"rows_first":2000,"rows_last":500,"rows_between":2000,"halvings":0,"cell_chars":16384,"cell_head_chars":4096},"cells_cut":0,"cells_raw":0,"read":"whole","date_system":"1900"}

{"sheet":"Setup","index":0,"n_rows":11,"n_cols":11,"rows_kept":11,"cut":false,"hidden":false,"merged":[[0,0,0,1],[5,0,5,3],[9,0,9,3],[10,0,10,1]]}
["Select what day our week begins on. This will change your week numbers on the \"Daily Scores\" tab.",null,"Type"]
["Day Your week begins","Monday",{"$f":"VLOOKUP(B2,H:K,4,FALSE)","v":2},null,null,null,null,"Day week begins on","Day week ends on","System","type"]
["Day Your Week ends",{"$f":"IFERROR(VLOOKUP(B2,H:I,2,FALSE),\"---\")","v":"Sunday"},null,null,null,null,null,"Sunday","Saturday",1,"1 or omitted"]
[null,null,null,null,null,null,null,"Monday","Sunday",1,2]
[null,null,null,null,null,null,null,"Tuesday","Monday",1,12]
["A Note on Averages",null,null,null,null,null,null,"Wednesday","Tuesday",1,13]
["Weighted Average","The sum of your actual points divided by the sum of your possible points",null,"This method treats days with more points as essentially worth more. A day where you got 20 of 25 points counts for more than a day where you got 12 of 15 points.",null,null,null,"Thursday","Wednesday",1,14]
["Unweighted Average","The average of your scores, regardless of possible or actual points.",null,"This method treats days with few points the same as days with many points. So a day where you got 12 of 15 points is worth exactly the same as a day where you got 20 out of 25 points.",null,null,null,"Friday","Thursday",1,15]
[null,null,null,null,null,null,null,"Saturday","Friday",1,16]
["Extra Credit Points"]
["If you choose to, you can add extra credit points to your score on certain days. There would be items that drop in, and were not on your original card, but are important enough that you believe your work on them should count toward your score. Click the link to the right to understand how extra credit works with your score calculation.",null,null,"Guide to Extra Credit Points (with formulas)"]

{"sheet":"Today Card","index":1,"n_rows":14,"n_cols":8,"rows_kept":14,"cut":false,"hidden":false,"merged":[[0,1,0,4],[13,2,13,3]]}
[null,"<-----------  Click the button to the left to start a new day \n(it will appear on top of the current day's card)"]
[null,"Date"]
["Task #","Task Description","Half done","Half done","Possible Points","Actual Points","min","max"]
[1,"Verb  |  Noun  |  Elaboration",false,false,{"$f":"IF(ISNUMBER(A4),(MAX(INDIRECT(G4):INDIRECT(H4))+1)-A4,IF(ISTEXT(A4),\"---\",\" \"))","v":6},{"$f":"IF(ISNUMBER(E4),(COUNTIFS(C4:D4,TRUE)*0.5*E4),IF(E4=\"---\",IF(AND(MAX(INDIRECT(G4):INDIRECT(H4))>5,COUNTIFS(C4:D4,TRUE)>1),1,IF(COUNTIFS(C4:D4,TRUE)>1,\"+.05\",\"---\")),\" \"))","v":0},{"$f":"ADDRESS(ROW(A4),1,4)","v":"A4"},{"$f":"(ADDRESS(ROW(A4)+9,1,4))","v":"A13"}]
[2,null,false,false,{"$f":"IF(ISNUMBER(A5),(MAX(INDIRECT(G5):INDIRECT(H5))+1)-A5,IF(ISTEXT(A5),\"---\",\" \"))","v":5},{"$f":"IF(ISNUMBER(E5),(COUNTIFS(C5:D5,TRUE)*0.5*E5),IF(E5=\"---\",IF(AND(MAX(INDIRECT(G5):INDIRECT(H5))>5,COUNTIFS(C5:D5,TRUE)>1),1,IF(COUNTIFS(C5:D5,TRUE)>1,\"+.05\",\"---\")),\" \"))","v":0},{"$f":"G4","v":"A4"},"A13"]
[3,null,false,false,{"$f":"IF(ISNUMBER(A6),(MAX(INDIRECT(G6):INDIRECT(H6))+1)-A6,IF(ISTEXT(A6),\"---\",\" \"))","v":4},{"$f":"IF(ISNUMBER(E6),(COUNTIFS(C6:D6,TRUE)*0.5*E6),IF(E6=\"---\",IF(AND(MAX(INDIRECT(G6):INDIRECT(H6))>5,COUNTIFS(C6:D6,TRUE)>1),1,IF(COUNTIFS(C6:D6,TRUE)>1,\"+.05\",\"---\")),\" \"))","v":0},{"$f":"G5","v":"A4"},"A13"]
[4,null,false,false,{"$f":"IF(ISNUMBER(A7),(MAX(INDIRECT(G7):INDIRECT(H7))+1)-A7,IF(ISTEXT(A7),\"---\",\" \"))","v":3},{"$f":"IF(ISNUMBER(E7),(COUNTIFS(C7:D7,TRUE)*0.5*E7),IF(E7=\"---\",IF(AND(MAX(INDIRECT(G7):INDIRECT(H7))>5,COUNTIFS(C7:D7,TRUE)>1),1,IF(COUNTIFS(C7:D7,TRUE)>1,\"+.05\",\"---\")),\" \"))","v":0},{"$f":"G6","v":"A4"},"A13"]
[5,null,false,false,{"$f":"IF(ISNUMBER(A8),(MAX(INDIRECT(G8):INDIRECT(H8))+1)-A8,IF(ISTEXT(A8),\"---\",\" \"))","v":2},{"$f":"IF(ISNUMBER(E8),(COUNTIFS(C8:D8,TRUE)*0.5*E8),IF(E8=\"---\",IF(AND(MAX(INDIRECT(G8):INDIRECT(H8))>5,COUNTIFS(C8:D8,TRUE)>1),1,IF(COUNTIFS(C8:D8,TRUE)>1,\"+.05\",\"---\")),\" \"))","v":0},{"$f":"G7","v":"A4"},"A13"]
[6,null,false,false,{"$f":"IF(ISNUMBER(A9),(MAX(INDIRECT(G9):INDIRECT(H9))+1)-A9,IF(ISTEXT(A9),\"---\",\" \"))","v":1},{"$f":"IF(ISNUMBER(E9),(COUNTIFS(C9:D9,TRUE)*0.5*E9),IF(E9=\"---\",IF(AND(MAX(INDIRECT(G9):INDIRECT(H9))>5,COUNTIFS(C9:D9,TRUE)>1),1,IF(COUNTIFS(C9:D9,TRUE)>1,\"+.05\",\"---\")),\" \"))","v":0},{"$f":"G8","v":"A4"},"A13"]
["A",null,false,false,{"$f":"IF(ISNUMBER(A10),(MAX(INDIRECT(G10):INDIRECT(H10))+1)-A10,IF(ISTEXT(A10),\"---\",\" \"))","v":"---"},{"$f":"IF(ISNUMBER(E10),(COUNTIFS(C10:D10,TRUE)*0.5*E10),IF(E10=\"---\",IF(AND(MAX(INDIRECT(G10):INDIRECT(H10))>5,COUNTIFS(C10:D10,TRUE)>1),1,IF(COUNTIFS(C10:D10,TRUE)>1,\"+.05\",\"---\")),\" \"))","v":"---"},{"$f":"G9","v":"A4"},"A13"]
["B",null,false,false,{"$f":"IF(ISNUMBER(A11),(MAX(INDIRECT(G11):INDIRECT(H11))+1)-A11,IF(ISTEXT(A11),\"---\",\" \"))","v":"---"},{"$f":"IF(ISNUMBER(E11),(COUNTIFS(C11:D11,TRUE)*0.5*E11),IF(E11=\"---\",IF(AND(MAX(INDIRECT(G11):INDIRECT(H11))>5,COUNTIFS(C11:D11,TRUE)>1),1,IF(COUNTIFS(C11:D11,TRUE)>1,\"+.05\",\"---\")),\" \"))","v":"---"},{"$f":"G10","v":"A4"},"A13"]
[null,null,false,false,{"$f":"IF(ISNUMBER(A12),(MAX(INDIRECT(G12):INDIRECT(H12))+1)-A12,IF(ISTEXT(A12),\"---\",\" \"))","v":" "},{"$f":"IF(ISNUMBER(E12),(COUNTIFS(C12:D12,TRUE)*0.5*E12),IF(E12=\"---\",IF(AND(MAX(INDIRECT(G12):INDIRECT(H12))>5,COUNTIFS(C12:D12,TRUE)>1),1,IF(COUNTIFS(C12:D12,TRUE)>1,\"+.05\",\"---\")),\" \"))","v":" "},{"$f":"G11","v":"A4"},"A13"]
[null,null,false,false,{"$f":"IF(ISNUMBER(A13),(MAX(INDIRECT(G13):INDIRECT(H13))+1)-A13,\" \")","v":" "},{"$f":"IF(ISNUMBER(E13),(COUNTIFS(C13:D13,TRUE)*0.5*E13),IF(E13=\"---\",IF(AND(MAX(INDIRECT(G13):INDIRECT(H13))>5,COUNTIFS(C13:D13,TRUE)>1),1,IF(COUNTIFS(C13:D13,TRUE)>1,\"+.05\",\"---\")),\" \"))","v":" "},{"$f":"G12","v":"A4"},"A13"]
["Totals",null,{"$f":"(F14/E14)+(COUNTIFS(F4:F13,\"+0.05\")*0.05)","v":0},null,{"$f":"(MAX(A4:A12)*(MAX(A4:A12)+1)/2)","v":21},{"$f":"SUM(F4:F13)","v":0},{"$f":"IF(COUNTIFS(F4:F13,\"+.05\")>0,\"+\",\" \")","v":" "}]

{"sheet":"Daily Scores","index":2,"n_rows":23,"n_cols":12,"rows_kept":23,"cut":false,"hidden":false,"merged":[]}
["Year","Week","Day","Date","Possible","Actual","Score","Notes","Weighted Running Avg",{"$f":"SUM(F2:F629)/SUM(E2:E629)","v":0.82499999999999996},"Unweighted Running Avg",{"$f":"AVERAGE(G2:G629)","v":0.80811011904761898}]
[{"$f":"YEAR(D2)","v":2021},{"$f":"WEEKNUM(D2,16)","v":51},"Saturday","2021-12-11",15,13,{"$f":"F2/E2","v":0.8666666666666667},"Notes on how the day went. Reflect and see what you learned, how you felt, etc."]
[2021,51,"Sunday","2021-12-12",15,12,0.8]
[2021,51,"Monday","2021-12-13",21,19,0.90476190476190477]
[2021,51,"Tuesday","2021-12-14",21,19,0.90476190476190477]
[2021,51,"Wednesday","2021-12-15",28,22,0.7857142857142857]
[2021,51,"Thursday","2021-12-16",28,20.5,0.7321428571428571]
[2021,51,"Friday","2021-12-17",6,2,0.33333333333333331]
[2021,52,"Saturday","2021-12-18",10,{"$f":"G9*E9","v":6.5},{"$f":"(5/E9)+(3*0.05)","v":0.65}]
[2021,52,"Sunday","2021-12-19",15,15,{"$f":"F10/E10","v":1}]
[2021,52,"Monday","2021-12-20",10,10,1]
[2021,52,"Tuesday","2021-12-21",15,{"$f":"G12*E12","v":9.75},{"$f":"(9/E12)+0.05","v":0.65}]
[2021,52,"Wednesday","2021-12-22",15,10.5,{"$f":"F13/E13","v":0.7}]
[2021,52,"Thursday","2021-12-23",null,null,null,"Day off"]
[2021,52,"Friday","2021-12-24",15,14,{"$f":"F15/E15","v":0.93333333333333335}]
[2021,53,"Saturday","2021-12-25",null,null,null,"Day off"]
[2021,53,"Sunday","2021-12-26",10,9,{"$f":"F17/E17","v":0.9}]
[2021,53,"Monday","2021-12-27",15,{"$f":"G18*E18","v":12.250000000000002},{"$f":"(11.5/15)+0.05","v":0.81666666666666676}]
[2021,53,"Tuesday","2021-12-28",21,20,{"$f":"F19/E19","v":0.95238095238095233}]
[2021,53,"Wednesday","2021-12-29"]
[2021,53,"Thursday","2021-12-30"]
[2021,53,"Friday","2021-12-31"]
[2022,1,"Saturday","2022-01-01"]

{"sheet":"Weekly Reflection","index":3,"n_rows":4,"n_cols":8,"rows_kept":4,"cut":false,"hidden":false,"merged":[]}
["Year","Week","Weighted Avg.","Unweighted Avg.","Change","Week Notes & What Did I Learn About Myself this Week?","Why the change? \nGood or bad","What should I do in the coming week based on this?"]
[2021,51,{"$f":"SUMIFS('Daily Scores'!F:F,'Daily Scores'!B:B,B2)/SUMIFS('Daily Scores'!E:E,'Daily Scores'!B:B,B2)","v":0.80223880597014929},{"$f":"AVERAGEIFS('Daily Scores'!G:G,'Daily Scores'!B:B,B2,'Daily Scores'!A:A,A2)","v":0.76105442176870741},"---"]
[2021,52,{"$f":"SUMIFS('Daily Scores'!F:F,'Daily Scores'!B:B,B3)/SUMIFS('Daily Scores'!E:E,'Daily Scores'!B:B,B3)","v":0.82187500000000002},{"$f":"AVERAGEIFS('Daily Scores'!G:G,'Daily Scores'!B:B,B3,'Daily Scores'!A:A,A3)","v":0.8222222222222223},{"$f":"(C3-C2)/C2","v":2.4476744186046489E-2}]
[2021,53,{"$f":"SUMIFS('Daily Scores'!F:F,'Daily Scores'!B:B,B4)/SUMIFS('Daily Scores'!E:E,'Daily Scores'!B:B,B4)","v":0.89673913043478259},{"$f":"AVERAGEIFS('Daily Scores'!G:G,'Daily Scores'!B:B,B4,'Daily Scores'!A:A,A4)","v":0.88968253968253974},9.1089436270457874E-2]

{"sheet":"S3","index":4,"n_rows":1,"n_cols":4,"rows_kept":1,"cut":false,"hidden":false,"merged":[]}
["Today/Tomorrow","Next Few Days","This Week","Next Week & After"]

{"sheet":"Projects","index":5,"n_rows":2,"n_cols":4,"rows_kept":2,"cut":false,"hidden":false,"merged":[]}
["Project Name","Project Description","Goal the project serves","Notes (optional)"]
["Complete website","Pick a template and build the pages within in it."]

{"sheet":"Goals","index":6,"n_rows":118,"n_cols":9,"rows_kept":118,"cut":false,"hidden":false,"merged":[]}
["Goal #","Concise Description of the Goal","Describe what it will look and feel like for you when the goal is achieved","Timeframe to achieve goal","Current projects serving this goal",null,null,null,"Helper Column (don't edit)"]
[1,"Grow the community to at least 500 people","The community has 500 people, with many of them engaged, posting regularly, and sharing with others. I correspond with them regularly","1 year",{"$f":"COUNTIFS(Projects!C:C,I2)","v":0},null,null,null,{"$f":"CONCATENATE(A2,\" - \",B2)","v":"1 - Grow the community to at least 500 people"}]
[2,null,null,null,null,null,null,null,"2 - "]
[3,null,null,null,null,null,null,null,"3 - "]
[4,null,null,null,null,null,null,null,"4 - "]
[null,null,null,null,null,null,null,null," - "]
[null,null,null,null,null,null,null,null," - "]
[null,null,null,null,null,null,null,null," - "]
[null,null,null,null,null,null,null,null," - "]
[null,null,null,null,null,null,null,null," - "]
[null,null,null,null,null,null,null,null," - "]
[null,null,null,null,null,null,null,null," - "]
[null,null,null,null,null,null,null,null," - "]
[null,null,null,null,null,null,null,null," - "]
[null,null,null,null,null,null,null,null," - "]
[null,null,null,null,null,null,null,null," - "]
[null,null,null,null,null,null,null,null," - "]
[null,null,null,null,null,null,null,null," - "]
[null,null,null,null,null,null,null,null," - "]
[null,null,null,null,null,null,null,null," - "]
[null,null,null,null,null,null,null,null," - "]
[null,null,null,null,null,null,null,null," - "]
[null,null,null,null,null,null,null,null," - "]
[null,null,null,null,null,null,null,null," - "]
[null,null,null,null,null,null,null,null," - "]
[null,null,null,null,null,null,null,null," - "]
[null,null,null,null,null,null,null,null," - "]
[null,null,null,null,null,null,null,null," - "]
[null,null,null,null,null,null,null,null," - "]
[null,null,null,null,null,null,null,null," - "]
[null,null,null,null,null,null,null,null," - "]
[null,null,null,null,null,null,null,null," - "]
[null,null,null,null,null,null,null,null," - "]
[null,null,null,null,null,null,null,null," - "]
[null,null,null,null,null,null,null,null," - "]
[null,null,null,null,null,null,null,null," - "]
[null,null,null,null,null,null,null,null," - "]
[null,null,null,null,null,null,null,null," - "]
[null,null,null,null,null,null,null,null," - "]
[null,null,null,null,null,null,null,null," - "]
[null,null,null,null,null,null,null,null," - "]
[null,null,null,null,null,null,null,null," - "]
[null,null,null,null,null,null,null,null," - "]
[null,null,null,null,null,null,null,null," - "]
[null,null,null,null,null,null,null,null," - "]
[null,null,null,null,null,null,null,null," - "]
[null,null,null,null,null,null,null,null," - "]
[null,null,null,null,null,null,null,null," - "]
[null,null,null,null,null,null,null,null," - "]
[null,null,null,null,null,null,null,null," - "]
[null,null,null,null,null,null,null,null," - "]
[null,null,null,null,null,null,null,null," - "]
[null,null,null,null,null,null,null,null," - "]
[null,null,null,null,null,null,null,null," - "]
[null,null,null,null,null,null,null,null," - "]
[null,null,null,null,null,null,null,null," - "]
[null,null,null,null,null,null,null,null," - "]
[null,null,null,null,null,null,null,null," - "]
[null,null,null,null,null,null,null,null," - "]
[null,null,null,null,null,null,null,null," - "]
[null,null,null,null,null,null,null,null," - "]
[null,null,null,null,null,null,null,null," - "]
[null,null,null,null,null,null,null,null," - "]
[null,null,null,null,null,null,null,null," - "]
[null,null,null,null,null,null,null,null," - "]
[null,null,null,null,null,null,null,null," - "]
[null,null,null,null,null,null,null,null," - "]
[null,null,null,null,null,null,null,null," - "]
[null,null,null,null,null,null,null,null," - "]
[null,null,null,null,null,null,null,null," - "]
[null,null,null,null,null,null,null,null," - "]
[null,null,null,null,null,null,null,null," - "]
[null,null,null,null,null,null,null,null," - "]
[null,null,null,null,null,null,null,null," - "]
[null,null,null,null,null,null,null,null," - "]
[null,null,null,null,null,null,null,null," - "]
[null,null,null,null,null,null,null,null," - "]
[null,null,null,null,null,null,null,null," - "]
[null,null,null,null,null,null,null,null," - "]
[null,null,null,null,null,null,null,null," - "]
[null,null,null,null,null,null,null,null," - "]
[null,null,null,null,null,null,null,null," - "]
[null,null,null,null,null,null,null,null," - "]
[null,null,null,null,null,null,null,null," - "]
[null,null,null,null,null,null,null,null," - "]
[null,null,null,null,null,null,null,null," - "]
[null,null,null,null,null,null,null,null," - "]
[null,null,null,null,null,null,null,null," - "]
[null,null,null,null,null,null,null,null," - "]
[null,null,null,null,null,null,null,null," - "]
[null,null,null,null,null,null,null,null," - "]
[null,null,null,null,null,null,null,null," - "]
[null,null,null,null,null,null,null,null," - "]
[null,null,null,null,null,null,null,null," - "]
[null,null,null,null,null,null,null,null," - "]
[null,null,null,null,null,null,null,null," - "]
[null,null,null,null,null,null,null,null," - "]
[null,null,null,null,null,null,null,null," - "]
[null,null,null,null,null,null,null,null," - "]
[null,null,null,null,null,null,null,null," - "]
[null,null,null,null,null,null,null,null," - "]
[null,null,null,null,null,null,null,null," - "]
[null,null,null,null,null,null,null,null," - "]
[null,null,null,null,null,null,null,null," - "]
[null,null,null,null,null,null,null,null," - "]
[null,null,null,null,null,null,null,null," - "]
[null,null,null,null,null,null,null,null," - "]
[null,null,null,null,null,null,null,null," - "]
[null,null,null,null,null,null,null,null," - "]
[null,null,null,null,null,null,null,null," - "]
[null,null,null,null,null,null,null,null," - "]
[null,null,null,null,null,null,null,null," - "]
[null,null,null,null,null,null,null,null," - "]
[null,null,null,null,null,null,null,null," - "]
[null,null,null,null,null,null,null,null," - "]
[null,null,null,null,null,null,null,null," - "]
[null,null,null,null,null,null,null,null," - "]
[null,null,null,null,null,null,null,null," - "]

{"sheet":"Guide to Extra Credit pts.","index":7,"n_rows":16,"n_cols":17,"rows_kept":16,"cut":false,"hidden":true,"merged":[]}
[]
[]
["# of Items on card",2,2,3,3,4,4,5,5,6,6,7,7,8,8,9,9]
[1,2,{"$f":"B4/SUM(B$4:B$12)","v":0.49382716049382719},3,{"$f":"D4/SUM(D$4:D$12)","v":0.38461538461538469},4,{"$f":"F4/SUM(F$4:F$12)","v":0.32},5,{"$f":"H4/SUM(H$4:H$12)","v":0.27777777777777779},6,{"$f":"J4/SUM(J$4:J$12)","v":0.24844720496894407},7,{"$f":"L4/SUM(L$4:L$12)","v":0.23148148148148145},8,{"$f":"N4/SUM(N$4:N$12)","v":0.21574973031283712},9,{"$f":"P4/SUM(P$4:P$12)","v":0.2}]
[2,1,0.24691358024691359,2,0.25641025641025644,3,0.24,4,0.22222222222222221,5,0.20703933747412007,6,0.1984126984126984,7,0.18878101402373249,8,0.17777777777777778]
[3,{"$f":"C6*SUM(B4:B5)","v":0.15000000000000002},0.05,1,0.12820512820512822,2,0.16,3,0.16666666666666666,4,0.16563146997929606,5,0.16534391534391532,6,0.16181229773462785,7,0.15555555555555556]
[4,{"$f":"C7*B$14","v":0.15000000000000002},0.05,{"$f":"E7*D$14","v":0.30000000000000004},0.05,1,0.08,2,0.1111111111111111,3,0.12422360248447203,4,0.13227513227513227,5,0.13484358144552319,6,0.13333333333333333]
[5,0.15000000000000002,0.05,0.30000000000000004,0.05,{"$f":"G8*F$14","v":0.5},0.05,1,5.5555555555555552E-2,2,8.2815734989648032E-2,3,9.9206349206349201E-2,4,0.10787486515641856,5,0.1111111111111111]
[6,0.15000000000000002,0.05,0.30000000000000004,0.05,0.5,0.05,{"$f":"I9*H$14","v":0.75},0.05,1,4.1407867494824016E-2,2,6.6137566137566134E-2,3,8.0906148867313926E-2,4,8.8888888888888892E-2]
[7,0.15000000000000002,0.05,0.30000000000000004,0.05,0.5,0.05,0.75,0.05,{"$f":"K10*J$14","v":1.05},0.05,1,3.3068783068783067E-2,2,5.3937432578209279E-2,3,6.6666666666666666E-2]
[8,0.15000000000000002,0.05,0.30000000000000004,0.05,0.5,0.05,0.75,0.05,1.05,0.05,{"$f":"M11*L$14","v":1.1200000000000001},0.04,1,2.696871628910464E-2,2,4.4444444444444446E-2]
[9,0.15000000000000002,0.05,0.30000000000000004,0.05,0.5,0.05,0.75,0.05,1.05,0.05,1.1200000000000001,0.04,{"$f":"O12*N$14","v":1.08},0.03,1,2.2222222222222223E-2]
[]
["Total",3,null,6,null,10,null,15,null,21,null,28,null,36,null,45]
["Max points",{"$f":"SUM(B4:B12)","v":4.05},null,{"$f":"SUM(D4:D12)","v":7.7999999999999989},null,{"$f":"SUM(F4:F12)","v":12.5},null,{"$f":"SUM(H4:H12)","v":18},null,{"$f":"SUM(J4:J12)","v":24.150000000000002},null,{"$f":"SUM(L4:L12)","v":30.240000000000002},null,{"$f":"SUM(N4:N12)","v":37.08},null,{"$f":"SUM(P4:P12)","v":45}]
["Max score",{"$f":"B15/B14","v":1.3499999999999999},null,{"$f":"D15/D14","v":1.2999999999999998},null,{"$f":"F15/F14","v":1.25},null,{"$f":"H15/H14","v":1.2},null,{"$f":"J15/J14","v":1.1500000000000001},null,{"$f":"L15/L14","v":1.08},null,{"$f":"N15/N14","v":1.03},null,{"$f":"P15/P14","v":1}]